Cogmind - Beta 16.1 @@@ ROGUE MODE // 2026.03.01 @ 18:34:29 Player: Anonymous Bosch Result: Destroyed by D-53 Grenadier with Mini Grenade Launcher Performance ------------- Evolutions (0) 0 Regions Visited (2) 400 Robots Destroyed (36) 180 Value Destroyed (614) 614 Prototype IDs (1) 20 Alien Tech Used (0) 0 Bonus (0) 0 TOTAL SCORE: 1214 Bonus ------- None Cogmind --------- Core Integrity 0/250 Matter 279/300 Energy 27/100 System Corruption 0% Temperature Cool (0) Movement Rolling (160) Ox4 Location -10/Mines Parts ------- > --- POWER (1) -------- (None) > --- PROPULSION (2) --- Compact Wheel > --- UTILITY (2) ------ Huge Storage Unit > --- WEAPON (2) ------- (None) > --- INVENTORY (25) --- Ion Engine Light Ion Engine Light Treads Light Treads Large Storage Unit High-capacity Storage Unit High-capacity Battery (250) Large Matter Pod (150) Structural Scanner Seismic Detector Sensor Drone Bay (20/20) Medium Laser Medium Laser Medium Laser Grenade Launcher Mining Laser Mining Laser Peak State ------------ > --- POWER ------------ Light Nuclear Core > --- PROPULSION ------- Wheel Compact Wheel > --- UTILITY ---------- Huge Storage Unit Sensor Drone Bay > --- WEAPON ----------- Particle Gun Assault Rifle > --- INVENTORY -------- Ion Engine Light Ion Engine Light Treads Light Treads Wheel Compact Wheel Improved Heat Sink Large Storage Unit High-capacity Storage Unit High-capacity Battery Large Matter Pod Structural Scanner Seismic Detector Medium Laser Medium Laser Medium Laser Particle Gun Beam Cannon Grenade Launcher Mining Laser Mining Laser [Rating: 19] Favorites ----------- Power Light Nuclear Core Engine Ion Engine Power Core Light Nuclear Core Propulsion Light Treads Treads Light Treads Wheel Wheel Utility Seismic Detector Device Seismic Detector Storage Huge Storage Unit Weapon Assault Rifle Energy Gun Particle Gun Energy Cannon Beam Cannon Ballistic Gun Assault Rifle Special Weapon Mining Laser Build | -11 -10 -10 ------- Run | Yrd Mat Min Slots Evolved . | . . . Power . | . . . Propulsion . | . . . Utility . | . . . Weapon . | . . . Parts Attached 25 | 8 12 5 Power 3 | 2 1 . Engine 2 | 2 . . Core 1 | . 1 . Reactor . | . . . Propulsion 6 | 2 2 2 Treads 2 | 2 . . Leg . | . . . Wheel 4 | . 2 2 Hover . | . . . Flight . | . . . Utility 8 | 2 5 1 Device 4 | 1 2 1 Storage 4 | 1 3 . Processor . | . . . Hackware . | . . . Protection . | . . . Artifact . | . . . Weapon 8 | 2 4 2 Energy Gun 2 | . 1 1 Energy Cannon 1 | . 1 . Ballistic Gun 3 | 2 . 1 Ballistic Cannon . | . . . Launcher . | . . . Special Weapon 2 | . 2 . Impact Weapon . | . . . Slashing Weapon . | . . . Piercing Weapon . | . . . Special Melee Weapon . | . . . Unidentified Prototypes 1 | . . 1 Parts Lost 13 | . 3 10 Power 1 | . . 1 Propulsion 3 | . . 3 Utility 2 | . 1 1 Weapon 7 | . 2 5 Highest Loss Streak 9 | . 2 9 To Critical Strikes . | . . . Average Backups 12 | 5 12 19 Power 1 | . 1 2 Propulsion 2 | 2 2 2 Utility 4 | . 3 6 Weapon 5 | . 5 7 Tool/Special . | . . . Unused Backups 15 | . 5 10 Power 4 | . 2 2 Propulsion 1 | . 1 . Utility 5 | . 2 3 Weapon 5 | . . 5 Tool/Special . | . . . Average Slot Usage (%) 99 | . 99 99 Engine 2 | . 3 . Core 10 | . 10 13 Treads 9 | . 12 . Wheel 18 | . 15 27 Device 13 | . 13 14 Storage 14 | . 14 14 Energy Gun 5 | . 3 14 Energy Cannon 5 | . 6 . Ballistic Gun 15 | . 15 12 Special Weapon 1 | . 2 . Peak Build Rating 19 | 8 12 19 Average Rating 10 | 5 9 12 On Entrance 6 | . 8 12 Avg Prop Armor Cover (%) . | . . . Naked Turns . | . . . Heaviest Build 91 | 15 91 91 Greatest Support 40 | 40 40 26 Greatest Overweight (x) 3 | . 3 3 Average Overweight (x) 2 | . 2 3 Largest Inventory Capacity 25 | 8 25 25 Average Capacity 19 | 7 19 25 Most Carried 21 | 8 19 21 Average Carried 12 | 5 12 19 Final Capacity 25 | 8 25 25 Final Carried 18 | 8 18 17 Class Distribution -------------------- 95% | Mutant 4% | Scavenger-Mutant Dominant Class ---------------- Mutant | -10/Materials Mutant | -10/Mines Resources | -11 -10 -10 ----------- Run | Yrd Mat Min Matter Collected 1200 | 424 644 132 Remotely . | . . . Salvage Created 1271 | 255 813 203 Parts 80 | 26 44 10 Haulers Intercepted 2 | . 2 . Recyclers Shooed 4 | 1 3 . Parts Field Recycled . | . . . Retrieved Matter . | . . . Parts Self-Destructed . | . . . Prevented . | . . . Parts Restored . | . . . Kills | -11 -10 -10 ------- Run | Yrd Mat Min Combat Hostiles Destroyed 16 | . 12 4 Guns 12 | . 8 4 Cannons 4 | . 4 . Classes Destroyed 7 | 2 5 . Worker 1 | . 1 . Tunneler 11 | 9 1 1 Hauler 2 | . 2 . Recycler 4 | 1 2 1 Watcher 2 | . 2 . Swarmer 5 | . 3 2 Grunt 11 | . 9 2 Best Kill Streak 4 | 4 4 2 Combat Bots Only 3 | . 3 1 Max Kills in Single Turn 1 | 1 1 1 Gunslinging . | . . . Exploded . | . . . Melee . | . . . Uniques/NPCs Destroyed . | . . . Combat | -11 -10 -10 -------- Run | Yrd Mat Min Hostile Shots Fired 105 | . 68 37 Missed 16 | . 12 4 Hits 89 | . 56 33 Projectile 89 | . 56 33 AOE 16 | . . 16 Damage Taken 1395 | . 619 776 Core 259 | . 58 201 Absorbed by Shields . | . . . Regen/Repaired (Parts) 113 | . 113 . Core Remaining (%) 100 | 100 . . Volleys Fired 136 | 24 84 28 Largest 2 | 2 2 2 Hottest 125 | 40 100 125 Shots Fired 254 | 48 156 50 Gun 215 | 48 123 44 Cannon 22 | . 21 1 Launcher . | . . . Special 17 | . 12 5 Kinetic 172 | 48 103 21 Thermal 82 | . 53 29 Explosive . | . . . Electromagnetic . | . . . Robot Hit Streak 13 | 13 13 6 Robot Miss Streak 4 | 2 4 2 Penetration Max . | . . . Secondary Targets 3 | . 3 . Max Gunslinging Chain 1 | . 1 . Shots Hit Robots 146 | 32 87 27 Core Hits 53 | 11 33 9 Critical Kills 1 | 1 . . Critical Parts Destroyed . | . . . Critical Strikes 2 | 1 1 . Burn 1 | . 1 . Destroy 1 | 1 . . Melee Attacks . | . . . Impact . | . . . Slashing . | . . . Piercing . | . . . Sneak Attacks . | . . . Combat Hostiles . | . . . Follow-up Attacks . | . . . Damage Inflicted 2149 | 429 1298 422 Guns 1827 | 429 976 422 Cannons 298 | . 298 . Explosions . | . . . Melee . | . . . Ramming . | . . . Kinetic 1336 | 429 767 140 Thermal 813 | . 531 282 Explosive . | . . . Electromagnetic . | . . . Impact . | . . . Slashing . | . . . Piercing . | . . . Highest Corruption . | . . . Average Corruption . | . . . Corruption Purged . | . . . Corruption Blocked . | . . . Overload Shots . | . . . Overflow Damage 12 | . 12 . Projectiles 12 | . 12 . Explosions . | . . . Melee . | . . . Knockbacks . | . . . Impact . | . . . Kinetic . | . . . Secondary . | . . . Self-Inflicted Damage . | . . . Shots . | . . . Rammed . | . . . Targets Rammed . | . . . Kicked . | . . . Crushed . | . . . Highest Temperature 270 | . 270 112 Average Temperature 58 | . 61 37 Received Heat Transfer 336 | . 255 81 Effects 3 | . 3 . Energy Bleed 1 | . 1 . Interference 2 | . 2 . Siege Activations . | . . . Martial Activations . | . . . Shielding Activations . | . . . Robots Disrupted . | . . . Combat Hostiles . | . . . Robots Corrupted . | . . . Combat Hostiles . | . . . Parts Fried . | . . . Impact Corruptions . | . . . Robots Melted . | . . . Combat Hostiles . | . . . Parts Melted 2 | . 2 . Heat Transferred 1863 | . 1234 629 Parts Sabotaged . | . . . Parts Stolen . | . . . Parts Stripped . | . . . Power Chain Reactions . | . . . Alert | -11 -10 -10 ------- Run | Yrd Mat Min Maximum Alert Level . | . . . Low Security (%) 100 | 100 100 100 Level 1 . | . . . Level 2 . | . . . Level 3 . | . . . Level 4 . | . . . Level 5 . | . . . High Security . | . . . Max Security . | . . . Peak Influence 83 | 20 83 36 Initial 6 | . 6 1 Average 16 | 2 21 7 Influence Increases 557 | 50 388 119 Destroy 0b10 Robot/C 320 | . 240 80 Destroy 0b10 Robot/NC 100 | 50 40 10 Destroy Leader 78 | . 68 10 Successful Hack 28 | . 28 . Destroy Structure 16 | . 12 4 Lose Combat Pursuer 15 | . . 15 Influence Decreases 557 | 40 394 123 Entered New Map 7 | . 4 3 Time Decay 507 | 40 370 97 Lost Part 43 | . 20 23 Squads Dispatched 3 | . 3 . Investigation 1 | . 1 . Extermination . | . . . Reinforcement 2 | . 2 . Assault . | . . . Garrison . | . . . Intercept . | . . . Searches Triggered . | . . . Construction Impeded . | . . . Haulers Reinforced . | . . . Active Scanning Responses . | . . . Cargo Convoy Interrupts . | . . . Stealth | -11 -10 -10 --------- Run | Yrd Mat Min Distress Signals 5 | . 3 2 Communications Jammed . | . . . Distress Signals . | . . . Times Spotted 30 | . 23 7 Peak Tracking Total 4 | . 4 2 Tactical Retreats 1 | . . 1 Traps | -11 -10 -10 ------- Run | Yrd Mat Min Traps Triggered 1 | . 1 . Indirectly . | . . . Trap Hack Attempts . | . . . Triggered . | . . . Disarmed . | . . . Reprogrammed . | . . . Reused . | . . . Traps Extracted . | . . . Installed . | . . . Triggered . | . . . Machines | -11 -10 -10 ---------- Run | Yrd Mat Min Machines Disabled . | . . . Max in Single Turn . | . . . Machines Repaired . | . . . Machines Dismantled . | . . . Machines Sabotaged . | . . . Overloaded Fab Kills . | . . . Hacking | -11 -10 -10 --------- Run | Yrd Mat Min Machines Accessed 10 | . 8 2 Terminals 7 | . 6 1 Fabricators . | . . . Repair Stations 1 | . 1 . Recycling Units 1 | . 1 . Scanalyzers . | . . . Garrison Access . | . . . Total Hacks 20 | . 17 3 Successful 13 | . 11 2 Failed 6 | . 5 1 Catastrophic . | . . . Database Lockouts 1 | . 1 . Manual 16 | . 13 3 Terminals 15 | . 13 2 Fabricators . | . . . Repair Stations 2 | . 2 . Recycling Units 2 | . 2 . Scanalyzers . | . . . Garrison Access . | . . . Terminal Hacks 2 | . 1 1 Robot Analysis 1 | . 1 . Open Door 1 | . . 1 Fabricator Hacks . | . . . Repair Station Hacks 2 | . 2 . Scan Component 1 | . 1 . Repair 1 | . 1 . Recycling Unit Hacks 1 | . 1 . Retrieve Components 1 | . 1 . Scanalyzer . | . . . Garrison Access Hacks . | . . . Unauthorized Hacks 8 | . 7 1 Terminals 8 | . 7 1 Track 2 | . 1 1 Disrupt 1 | . 1 . Skim 5 | . 5 . Fabricators . | . . . Repair Stations . | . . . Recycling Units . | . . . Scanalyzers . | . . . Garrison Access . | . . . Data Cores Recovered . | . . . Used . | . . . Hacking Detections 9 | . 8 1 Full Trace Events . | . . . Feedback Events . | . . . Feedback Blocked . | . . . Robot Schematics Acquired . | . . . Robots Built . | . . . Authchips . | . . . Time . | . . . Total Robot Build Rating . | . . . Part Schematics Acquired . | . . . Parts Built . | . . . Authchips . | . . . Time . | . . . Total Part Build Rating . | . . . Part Studies Acquired . | . . . Parts Repaired 1 | . 1 . Time 26 | . 26 . Parts Recycled . | . . . Recycled Matter . | . . . Retrieved Matter . | . . . Retrieved Components 1 | . 1 . Parts Scanalyzed . | . . . Part Schematics Acquired . | . . . Parts Damaged . | . . . Bothacking | -11 -10 -10 ------------ Run | Yrd Mat Min Used RIF Installer . | . . . Robots Hacked . | . . . Non-combat . | . . . Combat . | . . . Robot Hacks Applied . | . . . Relay Couplers Released . | . . . Fabnet Peak Effective % . | . . . Robots Rewired . | . . . Allies Hacked . | . . . Hacks Repelled . | . . . Allies | -11 -10 -10 -------- Run | Yrd Mat Min Total Allies . | . . . Largest Group . | . . . Highest-Rated Group . | . . . Highest-Rated Ally . | . . . Total Orders . | . . . Ally Attacks . | . . . Total Damage . | . . . Kills . | . . . Allies Corrupted . | . . . Allies Melted . | . . . Intel | -11 -10 -10 ------- Run | Yrd Mat Min Active Infowar (turns) 1908 | 129 1567 212 Seismic 1908 | 129 1567 212 Robot Analysis Total 1 | . 1 . Derelict Logs Recovered 1 | . . 1 Drone Launches . | . . . Drone Recoveries . | . . . Exploration | -11 -10 -10 ------------- Run | Yrd Mat Min Turns Passed 2357 | 236 1648 473 Spaces Moved 1050 | 55 732 263 Core 13 | 13 . . Treads 253 | 42 211 . Legs . | . . . Wheels 784 | . 521 263 Hover . | . . . Flight . | . . . Fastest Speed 50 | 50 135 135 Average Speed 145 | 134 149 135 Slowest Speed 240 | 160 240 135 Overloaded Moves . | . . . Propulsion Burnouts . | . . . Robots Hopped . | . . . Potential Cave-ins . | . . . Cave-ins Triggered . | . . . Exploration Rate (%) 50 | 3 97 50 Regions Visited 2 Branch Regions 1 Pre-discovered Areas 5 | . 3 2 Known Exits Taken . | . . . Unknown Exits Taken 2 | 1 1 . Scrap Searched . | . . . Spaces Dug 12 | . 9 3 Terrain Destroyed 16 | . 11 5 Melee . | . . . Projectile 16 | . 11 5 AOE . | . . . Terrain Rammed . | . . . Walls Destroyed . | . . . Machines Disabled . | . . . Actions | -11 -10 -10 --------- Run | Yrd Mat Min Total 1589 | 169 1102 318 Wait 312 | 68 233 11 Move 1048 | 54 731 263 Hop . | . . . Pick Up 41 | 15 22 4 Fast Attach 1 | . 1 . Attach 17 | 7 5 5 Detach . | . . . Swap 24 | 1 16 7 Drop 10 | . 10 . Fire 136 | 24 84 28 Melee . | . . . Ram . | . . . Kick . | . . . Crush . | . . . Escape Stasis . | . . . Rewire . | . . . Trap . | . . . Miscellaneous . | . . . Route ------- -11/Scrapyard -10/Materials (discovered 5 exits: *Mat x3 / *Min x2) -10/Mines (discovered 3 exits: *Mat x2 / Sub) History --------- Turn | Location | Event 13 | -11/Scrapyard | Discovered new exit (range 14) 237 | -11/Scrapyard | Entered Materials 300 | -10/Materials | Build established: Mutant 507 | -10/Materials | Discovered new exit (range 12) 861 | -10/Materials | Discovered new exit (range 6) 1042 | -10/Materials | Discovered new exit (range 5) 1286 | -10/Materials | Identified exit to Materials 1344 | -10/Materials | Discovered new exit (range 14) 1362 | -10/Materials | Learned Storage stockpile data 1473 | -10/Materials | Repaired Lgt. Treads 1482 | -10/Materials | Learned Storage terminal intel 1563 | -10/Materials | Learned Storage emergency access door positions 1813 | -10/Materials | Central database locked down 1885 | -10/Materials | Entered Mines 1886 | -10/Mines | Identified exit to Subcaves 1905 | -10/Mines | Found the Drone Emporium 1911 | -10/Mines | Found Prototype Device 1956 | -10/Mines | Assembled infested the area 1961 | -10/Mines | Assisted by a Guerilla fighting off Assembled 2087 | -10/Mines | Discovered exit to Materials (range 5) 2186 | -10/Mines | Learned location of Zion (-7) 2198 | -10/Mines | Learned location of Storage (-8) 2340 | -10/Mines | Identified Sensor Drone Bay 2346 | -10/Mines | Core integrity fell below 50% 2350 | -10/Mines | Core integrity fell below 20% 2358 | -10/Mines | Destroyed by D-53 Grenadier with Mini Grenade Launcher Last Messages --------------- 02200_ PT-RIC(g) slips back into the shadows. 02278_ S-10 Pest destroyed. 02284_ Acquired 14 matter. 02310_ S-10 Pest destroyed. 02313_ T-07 Excavator destroyed. 02317_ Acquired 24 matter. 02322_ Acquired Wheel. 02330_ K-01 Serf collects debris. 02340_ Identified Sensor Drone Bay. 02343_ Lgt. Nuclear Core destroyed. 02344_ The unstable cave ceiling collapses. 02346_ Com. Wheel destroyed. 02348_ Particle Gun destroyed. 02348_ Assault Rifle destroyed. 02351_ Wheel destroyed. 02353_ Beam Cannon destroyed. 02353_ Imp. Heat Sink destroyed. 02356_ Particle Gun destroyed. 02357_ The unstable cave ceiling collapses. 02358_ Wheel destroyed. Map ----- +----------------------------------------------------+ | ???????# ##???????# #??# ? | | ???????## ##?????#### #### #?? | | ????????## ##??????# #?? | | ?????????####???????# ####### #?? | | ????????????????????# #?????# ### | | ????????????????????# #?????# | | ????????????????????# #?????##### | | ????????????????????# #?????????# | | ?????????????????#### #???????### | | ?????????????????# #???????# | | ?????????????????# ####???????# | | ???######???###### #??????????# | | ??## ##??# #??????????# | | ??# ##?# ######??????????# | | ??# |###*#???????????????# | | ???# !%=* #???????????????### | | ???# #####?????????????????? | | ???##### #?????????????????????? | | ???????# #?????????????????????? | | ????#### #?????????????????????? | | ???### ####??????????????????? | | ??## ##?????????????????? | | ??# ##????????????????? | | ??# #????????????????? | | ??# #????????????????? | | ??# @ #????????????????? | | ??# #??????????????### | | ??## #???????????#### | | ??# #???????#### | | ?# d #??????## | | ?# ## d #?????## | | ?# #??# %#????## | | ?## #???? #??## | | ??###????? %#?## ## | | ?????????? ?# #### | | ?????????? #??# | | ?????????? ## #?# | | ??????????? ##?# #?## | | ???????????##??## ##??## | | ????????????????## #????# | | ?????????????????# ???? | | ?????????????????# ??# | | ????????????????? #?# | | ????????????????? #?## # | | ????????????????# ??#### | | ????????????????# #????? | | ????????????????## #????? | | ?????????????????# ????? | | ?????????????????# ???????? | | ?????????????????? ?????????? | +----------------------------------------------------+ Best States ------------- Heat Dissipation 39 Energy Generation 14 Energy Capacity 250 Matter Stores 300 Matter Capacity 300 Sight Range 16 Terrain Scan Density 10 Evasion (%) 50 Recoil Reduction 2 Item Schematics ----------------- None Robot Schematics ------------------ None Fabricated ------------ Nothing Repaired ---------- Lgt. Treads | 19% | -10/Materials Studied --------- None Alien Tech Used ----------------- None Achievements -------------- None Challenges ------------ None Game ------ Seed ReactiveReflexMinigun Manual? 0 Play Time 00:25:21 Cumulative 104.4 hours Start 2026.03.01 @ 16:48:42 End 2026.03.01 @ 18:34:29 Sessions 1 Manual Loads 0 Difficulty Rogue Special Mode None Game No. 46 Rogue 46 Adventurer 0 Explorer 0 Win Type - Total 2 Types 2/0/0/0/0/0/0/0/0/0 Lore% 56 Gallery% 49 Achievement% 45 Wizard Run 0 Options --------- Layout 1 ASCII 0 Keyboard 0 Movement Numpad Keybinds 0 Fullscreen 2 Font 24/Smallcaps Map View 50x35 Zoom Use 0% Tactical HUD 1 Map Filters NONE Filters NONE Steam 1 RUN: 808a3e17-f4a3-4a71-807d-261fd3c291f1